bitfinex/quotes_SOLUSD_20220103
["timestamp","ask_amount","ask_price","bid_price","bid_amount"]
[1641250216117,11.11666466,170.13,170.05,24.8678]
[1641250216414,12.39916466,170.13,170.05,24.8678]
[1641250216615,12.39916466,170.13,170.01,1.3356]
[1641250216817,1.42669368,170.12,170.02,1.3458]
[1641250217015,9.0848,170.12,170.02,1.3458]
[1641250217217,0.76,170.12,170.02,1.3458]
[1641250217816,40.26916466,170.13,170.02,1.3458]
[1641250218041,1.53336466,170.1,170.02,1.3458]
[1641250218417,2.29336466,170.1,170.02,1.3458]
[1641250219422,1.42669368,170.09,169.95,23.6525]
[1641250219623,8.56,170.08,169.97,1.3144]
[1641250219924,9.06,170.08,169.97,1.3144]
[1641250220120,9.32,170.08,169.97,1.3144]
[1641250220322,10.85336466,170.08,169.97,1.3144]
[1641250220621,27.91455834,170.08,169.97,1.3144]
[1641250220823,1.3237,170.07,169.97,1.3144]
[1641250221021,40.84346466,170.07,169.97,1.3144]
[1641250221328,42.77015834,170.07,169.93,46.3048]
[1641250221522,42.77015834,170.07,169.94,1.2988]
[1641250221722,10.36136466,170.06,169.94,1.2988]
[1641250221922,8.56,170.05,169.94,1.2988]
[1641250222123,370.18896967,170.05,169.94,1.2988]
[1641250222323,370.68896967,170.05,169.94,1.2988]
[1641250222724,371.97026967,170.05,169.94,1.2988]
[1641250223524,381.05916967,170.05,169.94,1.2988]
[1641250223725,382.59253433,170.05,169.94,1.2988]
[1641250224226,382.59253433,170.05,169.85,129.5384]
[1641250224425,81.13899368,170.04,169.89,1.2524]
[1641250224626,8.56,170.03,169.89,1.2524]
[1641250224826,9.06,170.03,169.89,1.2524]
[1641250225027,10.74669368,170.03,169.89,1.2524]
[1641250225428,8.8305,169.96,169.89,1.2524]
[1641250225649,8.8305,169.96,169.89,1.7524]
[1641250225848,9.0905,169.96,169.89,1.7524]
[1641250226851,9.0905,169.96,169.89,1.2524]
[1641250229354,9.0905,169.96,169.89,1.7524]
[1641250233858,9.0905,169.96,169.89,1.2524]
[1641250237364,9.0905,169.96,169.89,1.7524]
[1641250239867,8.8305,169.96,169.89,1.7524]
[1641250240466,8.56,169.99,169.89,1.7524]
[1641250241269,8.56,169.99,169.89,1.2524]
[1641250241470,8.82,169.99,169.89,1.2524]
[1641250241673,8.8301,169.96,169.89,1.2524]
[1641250241875,8.8301,169.96,169.89,1.7524]
[1641250242071,9.0901,169.96,169.89,1.7524]
[1641250242271,0.26,169.96,169.89,1.2524]
[1641250242471,9.32,169.99,169.89,1.2524]
[1641250242671,8.8294,169.98,169.89,1.2524]
[1641250242872,9.3294,169.98,169.89,1.2524]
[1641250243070,9.5894,169.98,169.89,1.2524]
[1641250243871,9.0894,169.98,169.89,1.2524]
[1641250244374,19.57609368,169.98,169.87,24.739]
[1641250244773,19.57609368,169.98,169.88,1.3512]
[1641250245175,19.57609368,169.98,169.87,24.739]
[1641250245474,20.90549368,169.98,169.87,24.739]
[1641250245874,26.36923462,169.98,169.87,24.739]
[1641250246275,26.36923462,169.98,169.82,1.3335]
[1641250246276,35.605456,169.98,169.82,1.3335]
[1641250246476,35.605456,169.98,169.82,1.8335]
[1641250247878,8.8334,169.94,169.82,0.5]
[1641250248084,17.6534,169.94,169.82,0.5]
[1641250248279,18.1534,169.94,169.78,38.944268]
[1641250248879,19.58009368,169.94,169.78,38.944268]
[1641250249482,1.2449,169.93,169.79,23.1604]
[1641250249679,8.834,169.92,169.79,23.1604]
[1641250249880,10.76069368,169.92,169.79,23.1604]
[1641250250079,1.42669368,169.91,169.79,23.1604]
[1641250250480,2.18669368,169.91,169.79,23.1604]
[1641250250680,2.18669368,169.91,169.79,23.6604]
[1641250251687,8.8341,169.88,169.79,23.6604]
[1641250252103,9.0941,169.88,169.79,23.6604]
[1641250258003,8.8334,169.89,169.79,32.494]
[1641250258604,8.8334,169.89,169.79,23.6604]
[1641250259005,8.56,169.92,169.79,23.6604]
[1641250259404,8.82,169.92,169.79,23.6604]
[1641250260402,8.56,169.92,169.79,23.6604]
[1641250260604,17.3929,169.92,169.81,8.8327]
[1641250260906,17.3929,169.92,169.82,23.5702]
[1641250261405,17.3929,169.92,169.82,24.0702]
[1641250261805,17.6529,169.92,169.82,24.0702]
[1641250262617,17.6529,169.92,169.83,8.8317]
[1641250263007,17.6529,169.92,169.83,9.3317]
[1641250263205,8.82,169.92,169.83,0.5]
[1641250263406,8.82,169.92,169.82,24.0702]
[1641250263605,8.82,169.92,169.82,24.3302]
[1641250263806,0.26,169.92,169.82,24.3302]
[1641250264006,535.57253569,169.96,169.85,8.8307]
[1641250264206,535.57253569,169.96,169.86,24.1167]
[1641250264406,535.57253569,169.96,169.86,24.6167]
[1641250264605,8.8309,169.94,169.86,24.6167]
[1641250265006,9.5909,169.94,169.86,24.6167]
[1641250265906,9.0909,169.94,169.86,24.6167]
[1641250272134,9.5909,169.94,169.86,24.6167]
[1641250272334,9.5909,169.94,169.86,0.5]
[1641250272736,9.5909,169.94,169.83,23.5938]
[1641250272934,9.5909,169.94,169.83,24.0938]
[1641250273137,1.3409,169.93,169.83,24.0938]
[1641250273337,8.8329,169.92,169.83,24.0938]
[1641250273534,9.0929,169.92,169.83,24.0938]
[1641250274135,1.3165,169.91,169.83,24.0938]
[1641250274536,1.5765,169.91,169.83,24.0938]
[1641250275738,8.8329,169.9,169.83,24.0938]
[1641250276137,9.0929,169.9,169.83,24.0938]
[1641250277540,0.26,169.9,169.83,24.0938]
[1641250277941,9.0922,169.91,169.83,24.0938]
[1641250279354,8.8322,169.91,169.83,24.0938]
[1641250279555,1.3532,169.94,169.83,32.9255]
[1641250279756,1.3532,169.94,169.83,24.0938]
[1641250280357,571.84480725,169.96,169.84,1.2696]
[1641250280758,8.831,169.94,169.85,8.8308]
[1641250280965,9.091,169.94,169.85,8.8308]
[1641250281159,9.591,169.94,169.85,0.5]
[1641250281358,9.091,169.94,169.85,0.5]
[1641250281759,9.091,169.94,169.84,1.7696]
[1641250283468,1.3415,169.93,169.84,0.5]
[1641250283660,8.8325,169.92,169.84,0.5]
[1641250283864,8.8325,169.92,169.83,24.0938]
[1641250284060,9.0925,169.92,169.83,24.0938]
[1641250286267,1.3515,169.91,169.83,24.0938]
[1641250286465,10.444,169.91,169.83,24.0938]
[1641250295179,10.444,169.91,169.81,10.056]
[1641250295379,10.444,169.91,169.81,1.2231]
[1641250296381,10.944,169.91,169.81,1.7231]
[1641250296581,10.944,169.91,169.81,1.2231]
[1641250296780,10.944,169.91,169.81,1.7231]
[1641250297382,10.444,169.91,169.81,1.7231]
[1641250297582,10.184,169.91,169.81,1.7231]
[1641250297782,10.184,169.91,169.81,24.5303]
[1641250298991,10.444,169.91,169.81,24.5303]
[1641250299491,10.444,169.91,169.81,23.3072]
[1641250300389,10.944,169.91,169.81,23.3072]
[1641250301089,10.444,169.91,169.81,23.3072]
[1641250301490,10.184,169.91,169.81,23.3072]
[1641250303293,10.444,169.91,169.81,23.3072]
[1641250306298,39.53956466,169.93,169.81,23.3072]
[1641250306299,1.53336466,169.93,169.81,23.3072]
[1641250306500,2.76716466,169.93,169.81,23.3072]
[1641250306795,1.2338,169.93,169.84,8.8309]
[1641250307201,1.53336466,169.94,169.84,0.5]
[1641250307796,526.75253569,169.96,169.83,23.0126]
[1641250307996,526.75253569,169.96,169.87,8.8294]
[1641250308398,526.75253569,169.96,169.87,9.3294]
[1641250308600,527.01253569,169.96,169.87,9.3294]
[1641250309497,526.75253569,169.96,169.87,0.5]
[1641250309697,526.75253569,169.96,169.88,8.8288]
[1641250309900,526.75253569,169.96,169.88,14.4088]
[1641250310598,526.75253569,169.96,169.88,5.58]
[1641250310798,527.01253569,169.96,169.88,5.58]
[1641250310997,526.75253569,169.96,169.88,0.76]
[1641250311399,8.56,170.02,169.88,0.26]
[1641250311603,17.3871,170.02,169.91,8.8271]
[1641250311999,17.3871,170.02,169.91,0.76]
[1641250312299,8.56,170.02,169.91,0.76]
[1641250312499,8.56,170.02,169.88,1.5684]
[1641250312698,8.56,170.02,169.88,2.0684]
[1641250312899,8.56,170.02,169.89,23.9124]
[1641250313100,8.56,170.02,169.89,24.1724]
[1641250313299,8.56,170.02,169.89,24.6724]
[1641250313700,8.56,170.02,169.94,8.8255]
[1641250313901,8.56,170.02,169.94,9.3255]
[1641250314301,8.8263,170.04,169.94,9.3255]
[1641250314502,8.8263,170.04,169.94,9.5855]
[1641250315000,78.4947,170.05,169.95,8.8249]
[1641250315401,78.4947,170.05,169.95,9.3249]
[1641250315999,78.7547,170.05,169.95,9.3249]
[1641250316200,78.4947,170.05,169.95,9.3249]
[1641250316604,87.3198,170.05,169.95,9.3249]
[1641250317901,17.3843,170.07,169.96,8.8243]
[1641250318100,17.3843,170.07,169.96,32.0385]
[1641250318301,17.3843,170.07,169.96,32.5385]
[1641250318702,417.88271076,170.08,169.97,9.98669368]
[1641250318904,1.53336466,170.1,170.03,8.8203]
[1641250319105,1.53336466,170.1,170.03,0.26]
[1641250319326,1.53336466,170.1,170.03,0.76]
[1641250319502,1.53336466,170.1,170.03,9.32]
[1641250319703,10.0865,170.15,170.03,9.06]
[1641250319902,10.5865,170.15,170.03,9.32]
[1641250320302,10.0865,170.15,170.03,9.32]
[1641250320507,9.8465,170.15,170.03,9.32]
[1641250320803,9.8465,170.15,170.04,8.8202]
[1641250321205,9.8465,170.15,170.04,9.3202]
[1641250321405,9.8465,170.15,170.04,17.8802]
[1641250322007,10.3465,170.15,170.04,17.8802]
[1641250326007,10.3465,170.15,170.05,8.8197]
[1641250326407,10.3465,170.15,170.05,9.3197]
[1641250328813,9.8465,170.15,170.05,9.3197]
[1641250329218,9.8465,170.15,170.05,0.5]
[1641250329413,9.8465,170.15,170.04,9.06]
[1641250331217,9.8465,170.15,170.04,0.5]
[1641250331421,9.8465,170.15,170.02,22.8604]
[1641250331619,10.3465,170.15,170.02,22.8604]
[1641250331819,8.56,170.14,169.98,96.3223]
[1641250332016,18.9204,170.14,169.98,22.7077]
[1641250332216,1.42669368,170.13,169.98,22.7077]
[1641250332416,8.56,170.12,169.94,8.56]
[1641250332621,107.9732,170.11,169.94,8.56]
[1641250332818,1.2338,170.1,169.94,8.56]
[1641250333018,1.4938,170.1,169.94,8.82]
[1641250333218,10.8195,170.1,169.95,23.4677]
[1641250333418,8.56,170.09,169.95,23.4677]
[1641250333920,9.32,170.09,169.92,8.56]
[1641250334119,10.74669368,170.09,169.92,0.5]
[1641250334343,19.57339368,170.09,169.92,0.5]
[1641250334547,10.74669368,170.09,169.92,0.5]
[1641250334745,10.74669368,170.09,169.91,0.5]
[1641250334746,2.5577,170.08,169.91,0.5]
[1641250334947,8.56,170.07,169.89,9.06]
[1641250335147,9.98669368,170.07,169.89,9.06]
[1641250335348,1.42669368,170.06,169.89,9.06]
[1641250335549,1.68669368,170.06,169.89,9.06]
[1641250335751,1.3006,170.05,169.89,9.06]
[1641250335948,10.8894,170.05,169.89,9.06]
[1641250336550,12.31609368,170.05,169.89,9.06]
[1641250336959,20.87609368,170.05,169.89,9.06]
[1641250337356,20.87609368,170.05,169.89,0.5]
[1641250337557,85.1215,170.04,169.79,1.2471]
[1641250337758,57.0433,170.03,169.79,1.2471]
[1641250337957,59.22999368,170.03,169.8,8.56]
[1641250338156,4.00529368,170.02,169.8,8.56]
[1641250338356,8.56,170.01,169.8,8.56]
[1641250338566,10.24669368,170.01,169.81,8.8319]
[1641250338760,1.53336466,169.97,169.82,8.56]
[1641250338957,2.29336466,169.97,169.82,8.56]
[1641250339460,2.29336466,169.97,169.82,9.06]
[1641250339857,0.76,169.97,169.82,9.06]
[1641250340060,0.5,169.97,169.82,9.06]
[1641250340257,2.29336466,169.98,169.82,9.06]
[1641250340658,8.8317,169.94,169.82,17.8917]
[1641250341059,9.0917,169.94,169.82,17.8917]
[1641250341961,9.0917,169.94,169.83,8.8314]
[1641250342362,9.0917,169.94,169.83,9.3314]
[1641250343760,8.8317,169.94,169.83,9.3314]
[1641250343960,8.8317,169.94,169.84,8.8309]
[1641250344464,8.8317,169.94,169.84,9.3309]
[1641250344661,8.8317,169.94,169.84,0.76]
[1641250345063,8.8317,169.94,169.84,0.26]
[1641250345262,8.8317,169.94,169.82,9.32]
[1641250345664,8.8317,169.94,169.82,9.06]
[1641250346765,8.8317,169.94,169.84,8.8309]
[1641250346967,8.8317,169.94,169.84,9.3309]
[1641250348068,9.0917,169.94,169.84,9.3309]
[1641250348469,9.0917,169.94,169.84,9.5909]
[1641250348768,9.0917,169.94,169.84,9.3309]
[1641250348969,9.0917,169.94,169.85,8.8303]
[1641250349370,9.0917,169.94,169.85,9.3303]
[1641250349972,9.0917,169.94,169.85,0.5]
[1641250350370,9.0917,169.94,169.83,25.0059]
[1641250351576,9.0917,169.94,169.84,8.8308]
[1641250351976,9.0917,169.94,169.84,9.3308]
[1641250353697,9.0917,169.94,169.85,8.8303]
[1641250353896,23.6194,170.0,169.85,0.76]
[1641250353897,8.56,170.0,169.85,0.76]
[1641250354100,77.3696,169.99,169.86,8.56]
[1641250354502,77.3696,169.99,169.86,9.32]
[1641250355302,77.6296,169.99,169.86,9.32]
[1641250355703,86.4572,169.99,169.91,8.8273]
[1641250355904,9.0876,169.99,169.91,9.3273]
[1641250365412,9.0876,169.99,169.91,0.5]
[1641250365811,9.0876,169.99,169.89,9.328]
[1641250367011,9.0876,169.99,169.9,8.828]
[1641250367516,9.0876,169.99,169.9,9.328]
[1641250369819,9.0876,169.99,169.9,0.5]
[1641250370217,9.0876,169.99,169.89,8.8284]
[1641250370417,9.0876,169.99,169.89,9.3284]
[1641250372747,9.0876,169.99,169.89,0.5]
[1641250372951,9.0876,169.99,169.86,9.06]
[1641250373352,9.0876,169.99,169.86,0.5]
[1641250373552,1.2577,169.98,169.86,0.5]
[1641250373751,8.8302,169.95,169.86,8.83]
[1641250373951,9.0902,169.95,169.86,9.33]
[1641250375155,1.2577,169.98,169.86,0.76]
[1641250375353,1.53336466,169.99,169.87,8.56]
[1641250375652,1.53336466,169.99,169.88,26.1826]
[1641250375853,1.53336466,169.99,169.88,35.2426]
[1641250376058,1.53336466,169.99,169.88,35.5026]
[1641250376553,1.3389,170.01,169.88,35.5026]
[1641250376753,10.4259,170.01,169.91,8.8272]
[1641250376954,10.4259,170.01,169.91,9.3272]
[1641250383764,10.4259,170.01,169.91,32.6638]
[1641250385369,1.53336466,170.04,169.92,8.56]
[1641250385571,1.53336466,170.04,169.92,8.82]
[1641250385768,1.53336466,170.04,169.92,9.32]
[1641250385969,1.53336466,170.03,169.92,9.32]
[1641250386170,1.53336466,170.03,169.93,24.0279]
[1641250386369,1.53336466,170.03,169.94,8.56]
[1641250386571,1.53336466,170.03,169.95,24.2158]
[1641250386769,1.53336466,170.07,169.95,39.2958]
[1641250386973,1.53336466,170.07,169.95,40.0558]
[1641250387772,10.1588,170.1,170.0,8.8225]
[1641250387973,10.4188,170.1,170.0,9.3225]
[1641250388373,1.53336466,170.08,170.0,9.3225]
[1641250388574,1.79336466,170.08,170.0,9.3225]
[1641250388975,10.61626466,170.08,170.0,9.3225]
[1641250391100,10.35626466,170.08,170.0,9.3225]
[1641250391301,10.35626466,170.08,170.0,9.5825]
[1641250392502,10.61626466,170.08,170.0,9.5825]
[1641250392709,1.79336466,170.08,170.0,9.5825]
[1641250393109,1.53336466,170.08,170.01,8.56]
[1641250393510,364.31098191,170.15,170.01,9.32]
[1641250393704,364.31098191,170.15,170.02,23.0854]
[1641250393906,364.31098191,170.15,170.03,8.56]
[1641250394108,364.31098191,170.15,170.07,8.8185]
[1641250394306,364.31098191,170.15,170.07,5.447]
[1641250394506,364.57098191,170.15,170.07,6.207]
[1641250394707,0.26,170.15,170.07,6.207]
[1641250394907,78.972,170.18,170.07,6.207]
[1641250395508,79.472,170.18,170.07,6.207]
[1641250395710,79.212,170.18,170.07,6.207]
[1641250395909,88.0303,170.18,170.08,8.8179]
[1641250396211,88.0303,170.18,170.08,9.0779]
[1641250396409,88.0303,170.18,170.08,9.5779]
[1641250396611,88.0303,170.18,170.08,9.3179]
[1641250396813,88.0303,170.18,170.08,0.5]
[1641250397011,88.2903,170.18,170.08,0.5]
[1641250397212,88.2903,170.18,170.06,24.3347]
[1641250397614,89.82366466,170.18,170.06,33.1538]
[1641250399115,88.2903,170.18,170.06,33.1538]
[1641250400615,88.2903,170.18,170.06,32.8938]
[1641250400814,88.2903,170.18,170.06,24.0747]
[1641250403318,88.2903,170.18,170.06,0.5]
[1641250403519,88.2903,170.18,170.05,9.06]
[1641250404631,88.2903,170.18,170.05,17.8799]
[1641250405222,88.2903,170.18,170.06,23.5211]
[1641250405425,88.2903,170.18,170.06,24.0211]
[1641250408326,88.2903,170.18,170.06,32.8406]
[1641250408924,87.7903,170.18,170.06,32.8406]
[1641250409126,87.7903,170.18,170.06,41.4006]
[1641250410424,88.2903,170.18,170.06,41.4006]
[1641250410626,87.7903,170.18,170.06,41.4006]
[1641250413325,87.2903,170.18,170.06,41.4006]
[1641250414728,87.0303,170.18,170.06,41.4006]
[1641250414929,87.0303,170.18,170.06,32.8411]
[1641250416031,87.2903,170.18,170.06,32.8411]
[1641250416232,87.2903,170.18,170.06,24.2811]
[1641250416632,87.2903,170.18,170.08,8.8184]
[1641250416862,87.2903,170.18,170.08,0.5]
[1641250417334,87.2903,170.18,170.06,24.0211]
[1641250418235,87.2903,170.18,170.06,25.3269]
[1641250418733,87.2903,170.18,170.07,8.819]
[1641250418935,87.2903,170.18,170.08,23.6782]
[1641250419134,87.2903,170.18,170.08,24.1782]
[1641250425443,95.8503,170.18,170.08,24.1782]
[1641250425641,87.2903,170.18,170.08,24.1782]
[1641250426644,96.3503,170.18,170.08,24.1782]
[1641250426844,87.7903,170.18,170.08,24.1782]
[1641250430051,96.3503,170.18,170.08,24.1782]
[1641250430251,87.7903,170.18,170.08,24.1782]
[1641250430752,96.3503,170.18,170.08,24.1782]
[1641250431151,96.3503,170.18,170.08,23.6782]
[1641250431650,96.0903,170.18,170.08,23.6782]
[1641250431867,87.5303,170.18,170.08,23.6782]
[1641250432272,87.5303,170.18,170.08,30.7482]
[1641250432473,87.0303,170.18,170.08,31.5082]
[1641250433071,87.2903,170.18,170.08,31.5082]
[1641250433671,87.2903,170.18,170.09,8.8182]
[1641250433872,87.2903,170.18,170.09,0.5]
[1641250434271,87.7903,170.18,170.08,23.9382]
[1641250434470,87.7903,170.18,170.08,24.4382]
[1641250435573,87.7903,170.18,170.08,33.2569]
[1641250435973,87.7903,170.18,170.08,24.4382]
[1641250437374,87.7903,170.18,170.08,24.1782]
[1641250437975,87.7903,170.18,170.08,23.6782]
[1641250438979,87.7903,170.18,170.08,32.9968]
[1641250439179,87.7903,170.18,170.08,24.1782]
[1641250440380,87.7903,170.18,170.08,24.4382]
[1641250440582,87.7903,170.18,170.09,8.8182]
[1641250440984,87.7903,170.18,170.09,9.3182]
[1641250443181,87.7903,170.18,170.09,0.5]
[1641250443383,87.7903,170.18,170.08,32.9969]
[1641250446582,87.7903,170.18,170.08,24.1782]
[1641250449287,87.5303,170.18,170.08,24.1782]
[1641250450686,87.7903,170.18,170.08,24.1782]
[1641250451686,87.7903,170.18,170.08,32.997]
[1641250456795,87.7903,170.18,170.09,8.8183]
[1641250456991,87.7903,170.18,170.09,9.3183]
[1641250457594,87.5303,170.18,170.09,9.3183]
[1641250457893,87.0303,170.18,170.09,0.76]
[1641250458119,87.5303,170.18,170.09,1.7863]
[1641250458695,87.5303,170.18,170.1,8.8177]
[1641250459094,87.7903,170.18,170.1,9.3177]
[1641250461099,87.7903,170.18,170.1,0.5]
[1641250461298,87.7903,170.18,170.1,24.7485]
[1641250461507,87.7903,170.18,170.1,24.2485]
[1641250461699,87.7903,170.18,170.1,24.7485]
[1641250469641,87.5303,170.18,170.1,24.7485]
[1641250469940,8.8183,170.18,170.1,33.5662]
[1641250470141,8.8183,170.18,170.1,24.2485]
[1641250470340,9.3183,170.18,170.1,24.2485]
[1641250470739,8.8183,170.18,170.1,24.2485]
[1641250470946,9.0783,170.18,170.1,24.2485]
[1641250471142,9.0783,170.18,170.1,24.7485]
[1641250471342,9.5783,170.18,170.1,24.7485]
[1641250471541,9.0783,170.18,170.1,24.7485]
[1641250472645,9.0783,170.18,170.1,33.5662]
[1641250472844,9.5783,170.18,170.1,33.5662]
[1641250474847,9.0783,170.18,170.1,33.5662]
[1641250490187,1.3135,170.19,170.1,24.7485]
[1641250490388,10.1305,170.19,170.11,8.8172]
[1641250490589,10.1305,170.19,170.12,24.2553]
[1641250490989,10.1305,170.19,170.12,24.7553]
[1641250491591,10.3905,170.19,170.12,24.2553]
[1641250493292,10.3905,170.19,170.07,8.56]
[1641250493493,10.3905,170.19,170.08,26.0751]
[1641250493896,10.8905,170.19,170.08,26.5751]
[1641250494092,19.4505,170.19,170.08,0.5]
[1641250494292,23.421,170.18,170.08,0.5]
[1641250494495,32.5005,170.18,170.05,22.8675]
[1641250494696,32.5005,170.18,170.07,8.8193]
[1641250494896,32.5005,170.18,170.07,9.3193]
[1641250495501,1.2221,170.17,170.07,9.5793]
[1641250495796,8.8192,170.16,170.07,9.5793]
[1641250495996,9.0792,170.16,170.07,9.5793]
[1641250497200,1.3523,170.15,170.07,9.5793]
[1641250497500,1.6123,170.15,170.07,9.5793]
[1641250498601,1.6123,170.15,170.08,8.8187]
[1641250499005,1.6123,170.15,170.08,9.3187]
[1641250500604,0.26,170.15,170.08,9.3187]
[1641250500808,34.19686466,170.2,170.08,0.76]
[1641250501006,1.3491,170.19,170.08,0.76]
[1641250501305,1.3491,170.19,170.09,8.56]
[1641250501507,1.6091,170.19,170.09,0.26]
[1641250501707,1.6091,170.19,170.09,0.76]
[1641250502305,8.8166,170.2,170.11,8.8166]
[1641250502506,1.3061,170.22,170.11,0.26]
[1641250502705,0.5,170.2,170.11,0.76]
[1641250503409,8.8159,170.22,170.13,8.8157]
[1641250503608,8.8159,170.22,170.13,9.0757]
[1641250503808,9.3159,170.22,170.13,9.5757]
[1641250504214,9.5759,170.22,170.13,9.5757]
[1641250506111,9.5759,170.22,170.14,8.8156]
[1641250506515,9.5759,170.22,170.14,9.5756]
[1641250508312,0.76,170.22,170.14,9.5756]
[1641250508512,0.5,170.22,170.14,9.5756]
[1641250508714,9.5751,170.23,170.14,9.5756]
[1641250509512,9.5751,170.23,170.15,8.8149]
[1641250509913,9.5751,170.23,170.15,9.0749]
[1641250510642,9.0751,170.23,170.15,9.5749]
[1641250514245,9.0751,170.23,170.15,0.5]
[1641250514442,9.0751,170.23,170.13,9.3157]
[1641250515043,10.1413,170.22,170.13,0.5]
[1641250515243,10.1413,170.22,170.14,8.8155]
[1641250515446,10.4013,170.22,170.14,9.3155]
[1641250515744,10.4013,170.22,170.14,0.5]
[1641250516346,10.4013,170.22,170.12,9.06]
[1641250516750,10.4013,170.22,170.12,9.32]
[1641250517646,10.4013,170.22,170.13,8.816]
[1641250517847,10.4013,170.22,170.13,9.316]
[1641250518047,10.4013,170.22,170.13,9.576]
[1641250524058,10.4013,170.22,170.14,22.9151]
[1641250524460,10.4013,170.22,170.14,23.4151]
[1641250528766,10.4013,170.22,170.14,0.5]
[1641250528968,10.4013,170.22,170.12,18.1366]
[1641250529988,10.4013,170.22,170.12,9.5766]
[1641250530391,10.4013,170.22,170.12,0.5]
[1641250530590,10.4013,170.22,170.11,24.2666]
[1641250530793,10.9013,170.22,170.11,24.2666]
[1641250531794,10.9013,170.22,170.11,24.7666]
[1641250531995,10.9013,170.22,170.11,0.5]
[1641250532194,8.8182,170.2,170.11,0.5]
[1641250532395,8.8182,170.2,170.09,9.3182]
[1641250532595,9.0782,170.2,170.09,9.3182]
[1641250532796,9.0782,170.2,170.09,9.5782]
[1641250532996,1.2856,170.19,170.09,9.5782]
[1641250533195,10.1033,170.19,170.09,9.5782]
[1641250533396,10.3633,170.19,170.09,9.5782]
[1641250534196,10.3633,170.19,170.09,9.3182]
[1641250534601,10.3633,170.19,170.09,8.8182]
[1641250534798,10.3633,170.19,170.08,31.3908]
[1641250534998,10.8633,170.19,170.08,31.6508]
[1641250535699,10.3633,170.19,170.08,31.6508]
[1641250535899,10.3633,170.19,170.08,32.1508]
[1641250536699,10.3633,170.19,170.08,23.3321]
[1641250536900,9.0777,170.19,170.08,23.3321]
[1641250537303,8.8177,170.19,170.08,23.3321]
[1641250538002,8.8177,170.19,170.09,1.2297]
[1641250538402,8.8177,170.19,170.11,8.8171]
[1641250538602,9.0777,170.19,170.11,8.8171]
[1641250538804,9.0777,170.19,170.11,9.3171]
[1641250539203,10.324,170.19,170.11,9.3171]
[1641250540504,10.324,170.19,170.11,9.5771]
[1641250554827,10.324,170.19,170.12,8.8166]
[1641250555032,10.324,170.19,170.12,9.0766]
[1641250555227,10.064,170.19,170.12,9.5766]
[1641250555428,23.3962,170.22,170.12,0.76]
[1641250555831,23.3962,170.22,170.11,22.5471]
[1641250556030,104.2503,170.25,170.11,22.8071]
[1641250556232,24.3891,170.24,170.15,8.8151]
[1641250556431,24.3891,170.24,170.15,9.3151]
[1641250556630,24.6491,170.24,170.15,9.5751]
[1641250556831,24.6491,170.24,170.15,9.3151]
[1641250557033,24.6491,170.24,170.15,9.5751]
[1641250557632,8.8154,170.23,170.15,9.5751]
[1641250558030,9.0754,170.23,170.15,9.5751]
[1641250564735,8.5754,170.23,170.15,9.5751]
[1641250567336,8.5754,170.23,170.15,0.5]
[1641250567536,8.5754,170.23,170.12,1.7433]
[1641250567738,8.5754,170.23,170.12,1.2433]
[1641250568038,9.0754,170.23,170.12,1.7433]
[1641250568237,24.1144,170.22,170.12,0.5]
[1641250568438,33.4322,170.22,170.11,23.0471]